bitfinex-derivatives/quotes_BTCF0:USTF0_20250508
["timestamp","ask_amount","ask_price","bid_price","bid_amount"]
[1746732156947,0.7223989,101240.0,101230.0,1e-07]
[1746732157138,0.97597496,101240.0,101230.0,1e-07]
[1746732157849,0.7223989,101240.0,101230.0,1e-07]
[1746732158445,0.97597496,101240.0,101230.0,1e-07]
[1746732159747,0.98097496,101240.0,101230.0,1e-07]
[1746732159946,0.1975402,101230.0,101220.0,0.0644]
[1746732160150,0.84241626,101230.0,101220.0,0.0644]
[1746732160447,0.1975597,101220.0,101210.0,0.0316]
[1746732160648,0.87313576,101220.0,101210.0,0.093]
[1746732160852,0.6195597,101220.0,101210.0,0.2905792]
[1746732161051,0.6195597,101220.0,101210.0,0.093]
[1746732161240,0.6195597,101220.0,101210.0,0.2905792]
[1746732162147,0.6195597,101220.0,101210.0,0.4585792]
[1746732163147,0.6195597,101220.0,101210.0,0.2905792]
[1746732163344,0.81334736,101220.0,101210.0,0.093]
[1746732163544,0.81334736,101220.0,101210.0,0.03]
[1746732163750,0.6195597,101220.0,101210.0,0.2589792]
[1746732163944,0.6195597,101220.0,101210.0,0.0614]
[1746732164142,0.2587597,101220.0,101210.0,0.4269792]
[1746732164542,0.6195597,101220.0,101210.0,0.4269792]
[1746732165843,0.5888597,101220.0,101210.0,0.4269792]
[1746732166251,0.5888597,101220.0,101210.0,0.2294]
[1746732166454,0.6193597,101220.0,101210.0,0.2294]
[1746732167853,0.6193597,101220.0,101210.0,0.4269792]
[1746732169255,0.5888597,101220.0,101210.0,0.4269792]
[1746732171155,0.6200597,101220.0,101210.0,0.4269792]
[1746732176243,0.6200597,101220.0,101210.0,0.2294]
[1746732176448,0.6200597,101220.0,101210.0,0.4269792]
[1746732177358,0.1975597,101220.0,101210.0,0.98156686]
[1746732178350,0.1975553,101230.0,101220.0,0.1975597]
[1746732178552,0.2787082,101240.0,101230.0,0.1975402]
[1746732178751,0.2787082,101240.0,101230.0,0.81632786]
[1746732178752,0.2469082,101240.0,101230.0,0.81632786]
[1746732179151,0.2469082,101240.0,101230.0,0.80598114]
[1746732179358,0.2787082,101240.0,101230.0,0.7905402]
[1746732180057,0.2469082,101240.0,101230.0,0.98432786]
[1746732180357,0.2469082,101240.0,101230.0,0.99976858]
[1746732180558,0.2469082,101240.0,101230.0,0.7905402]
[1746732180856,0.2469082,101240.0,101230.0,0.98432786]
[1746732182158,0.2468875,101250.0,101240.0,0.1975207]
[1746732182354,0.2468875,101250.0,101240.0,0.84860836]
[1746732182757,0.1975096,101250.0,101240.0,0.84860836]
[1746732183060,0.1975096,101250.0,101240.0,1.01660836]
[1746732183253,0.1995096,101250.0,101240.0,1.01660836]
[1746732183560,0.1995096,101250.0,101240.0,0.8228207]
[1746732183765,0.1995096,101250.0,101240.0,1.01660836]
[1746732184060,0.2025096,101250.0,101240.0,1.01660836]
[1746732184656,0.1995096,101250.0,101240.0,1.01660836]
[1746732185359,0.1975096,101250.0,101240.0,0.8228207]
[1746732185562,0.1975096,101250.0,101240.0,1.01660836]
[1746732187653,0.39129726,101250.0,101240.0,0.2645]
[1746732187853,0.81529726,101250.0,101240.0,0.2645]
[1746732188048,0.45449726,101250.0,101240.0,0.4620207]
[1746732188247,0.81529726,101250.0,101240.0,0.4620207]
[1746732188552,0.6215096,101250.0,101240.0,0.4620207]
[1746732189060,0.7115096,101250.0,101240.0,0.2645]
[1746732189263,0.7115096,101250.0,101240.0,0.4620207]
[1746732189557,0.91029726,101250.0,101240.0,0.4620207]
[1746732189866,0.1975792,101210.0,101200.0,0.11850797]
[1746732190162,0.1975792,101210.0,101200.0,0.40059714]
[1746732190360,0.2609792,101210.0,101200.0,0.40059714]
[1746732190561,0.2609792,101210.0,101200.0,0.5943848]
[1746732191264,0.2609792,101210.0,101200.0,0.57259714]
[1746732191563,0.2609792,101210.0,101200.0,0.57659714]
[1746732192065,0.2609792,101210.0,101200.0,0.7703848]
[1746732192361,0.2609792,101210.0,101200.0,0.7663848]
[1746732192565,0.2609792,101210.0,101200.0,0.7683848]
[1746732193162,0.1975631,101220.0,101210.0,0.3457347]
[1746732193359,0.1975631,101220.0,101210.0,0.96522236]
[1746732193560,0.2306631,101220.0,101210.0,0.96522236]
[1746732194066,0.2614631,101220.0,101210.0,0.9394347]
[1746732194470,0.2614631,101220.0,101210.0,1.13322236]
[1746732194662,0.2614631,101220.0,101210.0,0.9394347]
[1746732194861,0.2614631,101220.0,101210.0,1.13322236]
[1746732195061,0.2614631,101220.0,101210.0,1.08382926]
[1746732195263,0.2614631,101220.0,101210.0,0.8900416]
[1746732195462,0.2614631,101220.0,101210.0,0.4798502]
[1746732196270,0.2614631,101220.0,101210.0,0.67363786]
[1746732196869,0.2614631,101220.0,101210.0,1.03443786]
[1746732198270,0.2614631,101220.0,101210.0,0.67363786]
[1746732198671,0.2614631,101220.0,101210.0,0.4304792]
[1746732198872,0.45525076,101220.0,101210.0,0.168]
[1746732199175,0.1975792,101210.0,101200.0,0.90797894]
[1746732199367,0.2611792,101210.0,101200.0,0.90797894]
[1746732199673,0.2611792,101210.0,101200.0,0.80918184]
[1746732199974,0.2611792,101210.0,101200.0,0.75978384]
[1746732200165,0.45496686,101210.0,101200.0,0.1939]
[1746732200366,0.45496686,101210.0,101200.0,0.1649]
[1746732200568,0.45496686,101210.0,101200.0,0.3624988]
[1746732200975,0.2611792,101210.0,101200.0,0.3624988]
[1746732201173,0.2611792,101210.0,101200.0,0.3936988]
[1746732201976,0.2611792,101210.0,101200.0,0.3956988]
[1746732202773,0.6219792,101210.0,101200.0,0.3956988]
[1746732203468,0.6219792,101210.0,101200.0,0.104]
[1746732203974,0.6219792,101210.0,101200.0,0.3015988]
[1746732204674,0.6219792,101210.0,101200.0,0.104]
[1746732205066,0.6219792,101210.0,101200.0,0.3015988]
[1746732206380,0.6219792,101210.0,101200.0,0.3326988]
[1746732206681,0.6219792,101210.0,101200.0,0.3631988]
[1746732207075,0.6219792,101210.0,101200.0,0.5311988]
[1746732208375,0.2611792,101210.0,101200.0,0.72498646]
[1746732208574,0.2611792,101210.0,101200.0,0.75748646]
[1746732208880,0.2611792,101210.0,101200.0,0.9244988]
[1746732209084,0.2611792,101210.0,101200.0,0.5636988]
[1746732216371,0.2611792,101210.0,101200.0,0.3661]
[1746732216572,1.16576686,101210.0,101200.0,0.272]
[1746732216779,1.26457486,101210.0,101200.0,0.272]
[1746732217174,0.1976378,101180.0,101170.0,0.0638]
[1746732217376,0.75222546,101180.0,101170.0,0.0638]
[1746732217578,0.6241378,101180.0,101170.0,0.0638]
[1746732217781,0.6241378,101180.0,101170.0,0.07888301]
[1746732217982,0.6241378,101180.0,101170.0,0.27654041]
[1746732218379,0.6251378,101180.0,101170.0,0.09388301]
[1746732218578,0.5075,101180.0,101140.0,0.3506045]
[1746732218882,0.75228406,101150.0,101140.0,0.3506045]
[1746732219074,1.30028406,101150.0,101140.0,0.3506045]
[1746732219271,1.33118406,101150.0,101140.0,0.3506045]
[1746732219481,1.1373964,101150.0,101140.0,0.3506045]
[1746732219678,1.33118406,101150.0,101140.0,0.3817045]
[1746732220185,1.16318406,101150.0,101140.0,0.3817045]
[1746732220483,1.16318406,101150.0,101140.0,0.0311]
[1746732221076,1.16418406,101150.0,101140.0,0.0311]
[1746732221277,0.2295964,101150.0,101140.0,0.42260366]
[1746732221479,0.2315964,101150.0,101140.0,0.260916]
[1746732221681,0.2006964,101150.0,101140.0,0.45470366]
[1746732221990,0.2006964,101150.0,101140.0,0.260916]
[1746732222182,0.2006964,101150.0,101140.0,0.460616]
[1746732222486,0.2006964,101150.0,101140.0,0.65440366]
[1746732222685,0.6269964,101150.0,101140.0,0.169]
[1746732222886,0.2006964,101150.0,101140.0,0.430316]
[1746732223189,0.2006964,101150.0,101140.0,0.262316]
[1746732223388,0.2006964,101150.0,101140.0,0.45610366]
[1746732224189,0.2006964,101150.0,101140.0,0.62410366]
[1746732224888,0.2006964,101150.0,101140.0,0.430316]
[1746732225081,0.2314964,101150.0,101140.0,0.430316]
[1746732226291,0.2314964,101150.0,101140.0,0.294516]
[1746732227089,0.2314964,101150.0,101140.0,0.462516]
[1746732227385,0.2304964,101150.0,101140.0,0.462516]
[1746732227589,0.2394964,101150.0,101140.0,0.462516]
[1746732228893,0.2086964,101150.0,101140.0,0.462516]
[1746732230791,0.2086964,101150.0,101140.0,0.65630366]
[1746732231093,0.2086964,101150.0,101140.0,0.67131243]
[1746732231285,0.2086964,101150.0,101140.0,1.03211243]
[1746732231493,0.011,101150.0,101140.0,1.22835243]
[1746732231791,0.011,101150.0,101140.0,1.21334366]
[1746732232487,0.011,101150.0,101140.0,1.38334366]
[1746732232692,0.2086964,101150.0,101140.0,1.38334366]
[1746732232891,0.2086964,101150.0,101140.0,1.21334366]
[1746732233488,0.2086964,101150.0,101140.0,1.01710366]
[1746732233689,0.2086964,101150.0,101140.0,1.21334366]
[1746732235292,0.2086964,101150.0,101140.0,1.22833946]
[1746732236194,0.2086964,101150.0,101140.0,1.22853088]
[1746732236394,0.2086964,101150.0,101140.0,1.03474322]
[1746732236698,0.2056964,101150.0,101140.0,1.22853088]
[1746732236888,0.2026964,101150.0,101140.0,1.22853088]
[1746732237189,0.005,101150.0,101140.0,1.22853088]
[1746732237488,0.2026964,101150.0,101140.0,1.03474322]
[1746732237694,0.2026964,101150.0,101140.0,1.22853088]
[1746732237890,0.005,101150.0,101140.0,1.22853088]
[1746732238486,0.2026964,101150.0,101140.0,1.22853088]
[1746732239195,0.2026964,101150.0,101140.0,1.40853088]
[1746732239697,0.005,101150.0,101140.0,1.40853088]
[1746732240089,0.2026964,101150.0,101140.0,1.40853088]
[1746732240284,0.005,101150.0,101140.0,1.40853088]
[1746732240591,0.005,101150.0,101140.0,1.56853088]
[1746732241396,0.2026964,101150.0,101140.0,1.56853088]
[1746732242697,0.2026964,101150.0,101140.0,1.37474322]
[1746732242894,0.2026964,101150.0,101140.0,1.56853088]
[1746732243295,0.2026964,101150.0,101140.0,1.55353508]
[1746732243689,0.2051664,101150.0,101140.0,1.55353508]
[1746732245195,0.00747,101150.0,101140.0,1.55353508]
[1746732245399,0.2051664,101150.0,101140.0,1.55353508]
[1746732245695,0.2051664,101150.0,101140.0,1.35729508]
[1746732247500,0.00747,101150.0,101140.0,1.35729508]
[1746732247898,0.2470888,101170.0,101160.0,0.1976769]
[1746732248203,0.2470888,101170.0,101160.0,0.75226456]
[1746732248204,0.1976708,101170.0,101160.0,0.75226456]
[1746732248501,0.2606708,101170.0,101160.0,0.84656456]
[1746732248903,0.2676708,101170.0,101160.0,0.84656456]
[1746732249093,0.2676708,101170.0,101160.0,1.01456456]
[1746732249804,0.2606708,101170.0,101160.0,1.01456456]
[1746732250001,0.2706708,101170.0,101160.0,1.01556456]
[1746732250497,0.2646708,101170.0,101160.0,1.01456456]
[1746732250697,0.2686708,101170.0,101160.0,1.01456456]
[1746732253092,0.2686708,101170.0,101160.0,0.4599769]
[1746732253292,1.18325846,101170.0,101160.0,0.168]
[1746732253498,0.9894708,101170.0,101160.0,0.168]
[1746732253699,1.18325846,101170.0,101160.0,0.168]
[1746732253911,1.18325846,101170.0,101160.0,0.18317151]
[1746732254204,1.35125846,101170.0,101160.0,0.01517151]
[1746732255097,1.18325846,101170.0,101160.0,0.01517151]
[1746732255307,0.6286708,101170.0,101160.0,0.75226456]
[1746732255606,0.6286708,101170.0,101160.0,0.81666456]
[1746732255806,0.6286708,101170.0,101160.0,0.48856456]
[1746732256197,0.2686708,101170.0,101160.0,0.67159551]
[1746732256405,0.2686708,101170.0,101160.0,1.03239551]
[1746732256602,0.2686708,101170.0,101160.0,1.01736456]
[1746732256999,0.071,101170.0,101160.0,1.01736456]
[1746732257299,0.2056574,101170.0,101160.0,1.01736456]
[1746732257708,0.008,101170.0,101160.0,1.41115222]
[1746732258101,0.008,101170.0,101160.0,1.42629994]
[1746732258410,0.008,101170.0,101160.0,1.24771249]
[1746732258411,0.2056574,101170.0,101160.0,1.24771249]
[1746732258611,0.2056574,101170.0,101160.0,1.23251228]
[1746732258903,0.008,101170.0,101160.0,1.42629994]
[1746732259105,0.2056574,101170.0,101160.0,1.23251228]
[1746732259306,0.2016574,101170.0,101160.0,1.23249944]
[1746732259609,0.2026574,101170.0,101160.0,1.23349944]
[1746732260309,0.1996574,101170.0,101160.0,1.23349944]
[1746732265016,0.2303574,101170.0,101160.0,0.83971178]
[1746732265213,0.6219574,101170.0,101160.0,0.31091178]
[1746732265413,0.81574506,101170.0,101160.0,0.04793488]
[1746732265715,0.45494506,101170.0,101160.0,0.04793488]
[1746732266117,0.45494506,101170.0,101160.0,0.01613488]
[1746732266310,0.45494506,101170.0,101160.0,0.21381178]
[1746732266514,0.81574506,101170.0,101160.0,0.21381178]
[1746732266715,0.45494506,101170.0,101160.0,0.21381178]
[1746732267515,0.2611574,101170.0,101160.0,0.21381178]
[1746732268119,0.45494506,101170.0,101160.0,0.21381178]
[1746732268317,0.45494506,101170.0,101160.0,0.01613488]
[1746732268618,0.81574506,101170.0,101160.0,0.01613488]
[1746732269518,0.81574506,101170.0,101160.0,0.21381178]
[1746732271721,0.81574506,101170.0,101160.0,0.01613488]
[1746732271915,1.15574506,101170.0,101160.0,0.01613488]
[1746732272124,1.32374506,101170.0,101160.0,0.01613488]
[1746732272513,1.67259306,101170.0,101160.0,0.01613488]
[1746732272713,1.42259306,101170.0,101160.0,0.01613488]
[1746732276225,1.25459306,101170.0,101160.0,0.01613488]
[1746732277619,1.15574506,101170.0,101160.0,0.01613488]
[1746732279831,1.15574506,101170.0,101160.0,0.04613488]
[1746732285340,1.15574506,101170.0,101160.0,0.031]
[1746732286850,1.15574506,101170.0,101160.0,0.04639472]
[1746732287050,1.15574506,101170.0,101160.0,0.01639472]
[1746732288049,1.15574506,101170.0,101160.0,0.04959472]
[1746732289854,0.9619574,101170.0,101160.0,0.04959472]
[1746732290154,1.15574506,101170.0,101160.0,0.04959472]
[1746732290345,1.15574506,101170.0,101160.0,0.0342]
[1746732291441,1.15574506,101170.0,101160.0,0.001]
[1746732291955,1.15574506,101170.0,101160.0,0.01605973]
[1746732292154,1.32374506,101170.0,101160.0,0.04765973]
[1746732292356,1.32374506,101170.0,101160.0,0.0326]
[1746732293248,1.15574506,101170.0,101160.0,0.0326]
[1746732293452,1.15574506,101170.0,101160.0,0.04766373]
[1746732293753,1.15574506,101170.0,101160.0,0.07896373]
[1746732293962,0.1976964,101150.0,101140.0,0.63962742]
[1746732294257,0.1976964,101150.0,101140.0,0.68905592]
[1746732294457,1.04299876,101160.0,101150.0,0.1976964]
[1746732294762,0.99357526,101160.0,101150.0,0.1976964]
[1746732295852,0.99357526,101160.0,101150.0,0.1986964]
[1746732296053,0.30604266,101160.0,101150.0,0.1996964]
[1746732296355,0.50371956,101160.0,101150.0,0.1996964]
[1746732296548,0.50371956,101160.0,101150.0,0.1986964]
[1746732296749,0.51171956,101160.0,101150.0,0.1996964]
[1746732296958,0.59171956,101160.0,101150.0,0.1986964]
[1746732297154,0.59571956,101160.0,101150.0,0.3970964]
[1746732298158,0.59271956,101160.0,101150.0,0.3970964]
[1746732298358,0.95351956,101160.0,101150.0,0.3970964]
[1746732298756,1.10360504,101160.0,101150.0,0.3970964]
[1746732299258,1.02360504,101160.0,101150.0,0.4280964]
[1746732299556,0.24045898,101190.0,101180.0,0.1976378]
[1746732299755,0.24045898,101190.0,101180.0,1.45570546]
[1746732299956,0.24045898,101190.0,101180.0,1.54710546]
[1746732300256,0.19055898,101190.0,101180.0,1.89593346]
[1746732300660,0.19055898,101190.0,101180.0,2.85445346]
[1746732301053,0.19055898,101190.0,101180.0,3.02245346]
[1746732301355,0.19455898,101190.0,101180.0,2.77345346]
[1746732302262,0.19455898,101190.0,101180.0,2.60545346]
[1746732302563,0.006,101190.0,101180.0,2.61293225]
[1746732304866,0.006,101190.0,101180.0,2.80671991]
[1746732305558,0.00148386,101200.0,101190.0,0.1976183]
[1746732305761,0.00148386,101200.0,101190.0,1.16260596]
[1746732305954,0.00148386,101200.0,101190.0,1.26142595]
[1746732307159,0.00148386,101200.0,101190.0,1.45521361]
[1746732307361,0.00148386,101200.0,101190.0,1.26242595]
[1746732308362,0.00148386,101200.0,101190.0,1.11132596]
[1746732308666,0.03208386,101200.0,101190.0,1.11132596]
[1746732308857,0.00148386,101200.0,101190.0,1.11132596]
[1746732310066,0.00148386,101200.0,101190.0,1.16572416]
[1746732310268,0.00148386,101200.0,101190.0,1.54572416]
[1746732310861,1.39633014,101240.0,101220.0,0.1975597]
[1746732311059,2.06844624,101240.0,101230.0,0.0658]
[1746732311266,0.1975792,101210.0,101200.0,0.6077845]
[1746732311467,0.36961283,101220.0,101210.0,0.1975792]
[1746732311770,0.36961283,101220.0,101210.0,0.2303792]
[1746732311969,0.40191283,101220.0,101210.0,0.3780992]
[1746732312162,0.93071283,101220.0,101210.0,0.3780992]
[1746732312565,0.60201283,101220.0,101210.0,0.4110992]
[1746732312871,0.96681283,101220.0,101210.0,0.4110992]
[1746732313165,0.60601283,101220.0,101210.0,0.7718992]
[1746732313366,0.61101283,101220.0,101210.0,0.7728992]
[1746732313762,0.61101283,101220.0,101210.0,0.4120992]
[1746732313963,0.51222463,101220.0,101210.0,0.60588686]
[1746732314470,0.46283143,101220.0,101210.0,0.60588686]
[1746732315470,0.46283143,101220.0,101210.0,0.4120992]
[1746732316573,0.46283143,101220.0,101210.0,0.60588686]
[1746732316879,0.45983143,101220.0,101210.0,0.60588686]
[1746732317172,0.29183143,101220.0,101210.0,0.60588686]
[1746732317364,0.28883143,101220.0,101210.0,0.4110992]
[1746732317973,0.28883143,101220.0,101210.0,0.60488686]
[1746732318670,0.09125523,101220.0,101210.0,0.60488686]
[1746732318868,0.28881493,101220.0,101210.0,0.60488686]
[1746732319065,0.003,101220.0,101210.0,0.60488686]
[1746732319270,0.003,101220.0,101210.0,1.07568686]
[1746732319874,0.002,101220.0,101210.0,1.07568686]
[1746732320175,0.3928248,101230.0,101220.0,0.1975597]
[1746732320363,0.41668003,101230.0,101220.0,0.81614736]
[1746732320874,0.31790733,101230.0,101220.0,0.81614736]
[1746732321170,0.31790733,101230.0,101220.0,0.84764736]
[1746732321366,0.32090733,101230.0,101220.0,0.84764736]
[1746732321767,0.32190733,101230.0,101220.0,0.84764736]
[1746732322171,0.2375,101230.0,101220.0,1.10143502]
[1746732322475,0.172,101230.0,101220.0,1.31143502]
[1746732323177,0.001,101230.0,101220.0,1.31143502]
[1746732323372,0.3097037,101240.0,101230.0,0.1975402]
[1746732323573,0.33355893,101240.0,101230.0,0.81462786]
[1746732324075,0.33355893,101240.0,101230.0,0.82510873]
[1746732324576,0.33655893,101240.0,101230.0,0.63132107]
[1746732324777,0.33655893,101240.0,101230.0,0.82510873]
[1746732325071,0.33755893,101240.0,101230.0,0.63132107]
[1746732325276,0.33755893,101240.0,101230.0,0.82510873]
[1746732326080,0.34001893,101240.0,101230.0,0.46430873]
[1746732326280,0.34001893,101240.0,101230.0,1.18590873]
[1746732327168,0.09311523,101240.0,101230.0,1.18590873]
[1746732327380,0.03031523,101240.0,101230.0,1.18590873]
[1746732327575,0.03031523,101240.0,101230.0,1.52590873]
[1746732328681,0.00646,101240.0,101230.0,1.54134765]
[1746732332475,0.00646,101240.0,101230.0,1.52590873]
[1746732333883,0.00646,101240.0,101230.0,1.69590873]
[1746732334277,0.00646,101240.0,101230.0,1.70390873]
[1746732334977,0.00646,101240.0,101230.0,1.69390873]
[1746732335185,0.00646,101240.0,101230.0,1.52590873]
[1746732336083,0.00646,101240.0,101230.0,2.04058873]
[1746732336282,0.41577727,101260.0,101230.0,2.04058873]
[1746732336584,0.36640627,101260.0,101250.0,1.11288886]
[1746732336974,0.3902615,101260.0,101250.0,1.17658886]
[1746732337175,0.5582615,101260.0,101250.0,1.17658886]
[1746732337371,0.5652615,101260.0,101250.0,0.9828012]
[1746732337584,0.5652615,101260.0,101250.0,1.17658886]
[1746732338078,0.5702615,101260.0,101250.0,0.82308796]
[1746732338679,0.5712615,101260.0,101250.0,0.82308796]
[1746732338887,0.5712615,101260.0,101250.0,0.79238796]
[1746732339385,0.5712615,101260.0,101250.0,0.5986003]
[1746732344288,0.5712615,101260.0,101250.0,0.5666003]
[1746732344493,0.5712615,101260.0,101250.0,0.6986003]
[1746732345390,0.5712615,101260.0,101250.0,0.3378003]
[1746732345594,1.12584916,101260.0,101250.0,0.3377603]
[1746732345983,0.9320615,101260.0,101250.0,0.3377603]
[1746732346293,0.5712615,101260.0,101250.0,0.3377603]
[1746732347195,0.5712615,101260.0,101250.0,0.3708603]
[1746732352299,0.30055523,101260.0,101250.0,0.94061555]
[1746732352501,0.30055523,101260.0,101250.0,0.97211555]
[1746732352691,0.46733693,101260.0,101250.0,1.01491555]
[1746732353200,0.29933693,101260.0,101250.0,0.82112789]
[1746732353390,0.29933693,101260.0,101250.0,1.01491555]
[1746732354199,0.29733693,101260.0,101250.0,1.01491555]
[1746732354393,0.29533693,101260.0,101250.0,1.01391555]
[1746732354993,0.29533693,101260.0,101250.0,1.01418446]
[1746732355996,0.0418,101260.0,101250.0,1.19797212]
[1746732356295,0.03285523,101260.0,101250.0,1.43797212]
[1746732356998,0.03285523,101260.0,101250.0,1.24418446]
[1746732357200,0.20085523,101260.0,101250.0,1.24418446]
[1746732357797,0.177,101260.0,101250.0,1.43797212]
[1746732357994,0.177,101260.0,101250.0,1.56289212]
[1746732358198,0.009,101260.0,101250.0,1.56289212]
[1746732358494,0.00148295,101270.0,101260.0,0.1974817]
[1746732358697,0.00148295,101270.0,101260.0,1.63770286]
[1746732359194,0.16948295,101270.0,101260.0,1.63770286]
[1746732359395,0.168,101270.0,101260.0,1.63770286]
[1746732359598,0.168,101270.0,101260.0,1.81770286]
[1746732360300,0.00246,101280.0,101270.0,0.1974622]
[1746732360501,0.02631523,101280.0,101270.0,1.27358223]
[1746732360897,0.00246,101280.0,101270.0,1.27358211]
[1746732361201,0.1,101300.0,101290.0,0.1974232]
[1746732361402,0.38525893,101300.0,101290.0,1.27528192]
[1746732361600,0.38525893,101300.0,101290.0,1.37108076]
[1746732361800,0.38525893,101300.0,101290.0,1.1772931]
[1746732362201,0.55325893,101300.0,101290.0,1.1772931]
[1746732362503,0.55325893,101300.0,101290.0,1.1442931]
[1746732362798,0.55325893,101300.0,101290.0,0.7680232]
[1746732363104,0.55325893,101300.0,101290.0,0.3750232]
[1746732363296,0.74704659,101300.0,101290.0,0.3655652]
[1746732363489,0.54964289,101300.0,101280.0,0.5740727]
[1746732363701,0.31277843,101290.0,101280.0,1.20903189]
[1746732363902,0.31277843,101290.0,101280.0,1.1936001]
[1746732364105,0.48077843,101290.0,101280.0,1.1936001]
[1746732364503,0.48077843,101290.0,101280.0,1.38738776]
[1746732364899,0.48077843,101290.0,101280.0,1.1936001]
[1746732365101,1.03536609,101290.0,101280.0,0.7531411]
[1746732365298,0.1974427,101280.0,101270.0,0.8307723]
[1746732365493,0.28269793,101280.0,101270.0,0.8801375]
[1746732366001,0.28269793,101280.0,101270.0,0.4642375]
[1746732366208,0.45069793,101280.0,101270.0,0.4642375]
[1746732366604,0.45069793,101280.0,101270.0,0.4339375]
[1746732367002,0.45069793,101280.0,101270.0,0.4359375]
[1746732367408,0.45069793,101280.0,101270.0,0.4379375]
[1746732367711,0.45069793,101280.0,101270.0,0.4359375]
[1746732367902,0.45069793,101280.0,101270.0,0.4667375]
[1746732369307,0.4268427,101280.0,101270.0,0.4667375]
[1746732369610,0.45069793,101280.0,101270.0,0.4667375]
[1746732370414,0.64448559,101280.0,101270.0,0.373816]
[1746732371111,1.00528559,101280.0,101270.0,0.373816]
[1746732371309,1.00528559,101280.0,101270.0,0.127]
[1746732371615,0.1974622,101270.0,101260.0,0.25759184]
[1746732371810,0.31471743,101270.0,101260.0,0.33759184]
[1746732372314,0.48271743,101270.0,101260.0,0.3268366]
[1746732373415,0.48271743,101270.0,101260.0,0.3581366]
[1746732373716,0.48271743,101270.0,101260.0,0.36871444]
[1746732375115,0.2614,101270.0,101260.0,0.9233021]
[1746732375309,0.168,101270.0,101260.0,1.2733021]
[1746732375509,0.168,101270.0,101260.0,1.4733021]
[1746732376416,0.168,101270.0,101260.0,1.4753021]
[1746732377007,0.2009,101270.0,101260.0,1.4753021]
[1746732377216,0.2333,101270.0,101260.0,1.4793021]
[1746732377415,0.4307622,101270.0,101260.0,1.4793021]
[1746732377711,0.4307622,101270.0,101260.0,1.4813021]
[1746732377916,0.4307622,101270.0,101260.0,1.08751444]
[1746732378112,0.45461743,101270.0,101260.0,1.08751444]
[1746732378518,0.45461743,101270.0,101260.0,1.2813021]
[1746732379913,0.45461743,101270.0,101260.0,1.2793021]
[1746732380118,0.25715523,101270.0,101260.0,1.2793021]
[1746732380321,0.45461743,101270.0,101260.0,1.2793021]
[1746732380620,0.48631743,101270.0,101260.0,1.2793021]
[1746732380815,0.48631743,101270.0,101260.0,0.69471444]
[1746732381020,0.68010509,101270.0,101260.0,0.8111366]
[1746732381317,0.68010509,101270.0,101260.0,0.7758366]
[1746732381617,0.68010509,101270.0,101260.0,0.7798366]
[1746732382015,0.48631743,101270.0,101260.0,0.7798366]
[1746732382320,0.48631743,101270.0,101260.0,0.7758366]
[1746732382720,0.48631743,101270.0,101260.0,0.6488366]
[1746732382919,0.48631743,101270.0,101260.0,0.6468366]
[1746732383420,1.18901109,101270.0,101260.0,0.1974817]
[1746732383919,0.99522343,101270.0,101260.0,0.1974817]
[1746732384619,0.99822343,101270.0,101260.0,0.1974817]
[1746732385618,0.53868473,101270.0,101260.0,0.39126936]
[1746732385830,0.53868473,101270.0,101260.0,0.81516936]
[1746732386119,0.54068473,101270.0,101260.0,0.81516936]
[1746732386420,0.5168295,101270.0,101260.0,0.81516936]
[1746732386823,0.54068473,101270.0,101260.0,0.81516936]
[1746732387120,0.53868473,101270.0,101260.0,0.81516936]
[1746732387420,0.22775523,101270.0,101260.0,0.83516936]
[1746732387920,0.42521743,101270.0,101260.0,0.83516936]
[1746732388119,0.45551743,101270.0,101260.0,0.83516936]
[1746732388322,0.45251743,101270.0,101260.0,0.83516936]
[1746732389025,0.45251743,101270.0,101260.0,0.83716936]
[1746732389817,0.45251743,101270.0,101260.0,0.83916936]
[1746732390223,0.22475523,101270.0,101260.0,0.83916936]
[1746732390523,0.38931743,101270.0,101260.0,0.83916936]
[1746732391022,0.41961743,101270.0,101260.0,0.83916936]
[1746732391521,0.45251743,101270.0,101260.0,0.83916936]
[1746732392322,0.45251743,101270.0,101260.0,0.96276936]
[1746732392823,0.45251743,101270.0,101260.0,0.85460397]
[1746732393015,0.45251743,101270.0,101260.0,0.97820397]
[1746732393722,0.45251743,101270.0,101260.0,1.34820397]
[1746732394720,0.19185523,101270.0,101260.0,1.34820397]
[1746732394916,0.168,101270.0,101260.0,1.34820397]
[1746732398424,0.168,101270.0,101260.0,1.22460397]
[1746732398630,0.168,101270.0,101260.0,1.34820289]
[1746732401732,0.2002,101270.0,101260.0,1.34820289]
[1746732403430,0.2002,101270.0,101260.0,1.22460289]
[1746732403629,0.2002,101270.0,101260.0,1.34820289]
[1746732403830,0.2002,101270.0,101260.0,1.33276936]
[1746732404026,0.2002,101270.0,101260.0,1.34820294]
[1746732406126,0.168,101270.0,101260.0,1.34820294]
[1746732406328,0.19185523,101270.0,101260.0,1.34820294]
[1746732407335,0.19185523,101270.0,101260.0,1.34820282]
[1746732408025,0.168,101270.0,101260.0,1.34820282]
[1746732408225,0.279984,101290.0,101280.0,0.1974427]
[1746732408429,0.36723923,101290.0,101280.0,0.83746382]
[1746732408630,0.36723923,101290.0,101280.0,1.29386382]
[1746732408831,0.36723923,101290.0,101280.0,1.10007616]
[1746732409029,0.36723923,101290.0,101280.0,1.10007558]
[1746732409230,0.53523923,101290.0,101280.0,1.10007558]
[1746732409427,0.53723923,101290.0,101280.0,1.10007558]
[1746732410338,0.54023923,101290.0,101280.0,1.10007558]
[1746732410839,0.54023923,101290.0,101280.0,1.10007554]
[1746732411040,0.54235923,101290.0,101280.0,1.10007554]
[1746732411337,0.54023923,101290.0,101280.0,1.10007554]
[1746732411534,0.54023923,101290.0,101280.0,1.2938632]
[1746732411838,0.54023923,101290.0,101280.0,1.3050174]
[1746732412138,0.53723923,101290.0,101280.0,1.3050174]
[1746732412537,0.53723923,101290.0,101280.0,1.33792164]
[1746732412725,0.53523923,101290.0,101280.0,1.33792164]
[1746732412929,0.53523923,101290.0,101280.0,1.33792167]
[1746732413738,0.53523923,101290.0,101280.0,1.30502167]
[1746732414326,0.53523923,101290.0,101280.0,1.30502171]
[1746732414732,0.53523923,101290.0,101280.0,0.74623289]
[1746732414937,0.72902689,101290.0,101280.0,0.33599559]
[1746732415133,0.72902689,101290.0,101280.0,0.37599559]
[1746732415733,1.08982689,101290.0,101280.0,0.05543289]
[1746732416038,0.1974622,101270.0,101260.0,0.8625033]
[1746732416235,0.22131743,101270.0,101260.0,1.15493857]
[1746732416440,0.31491743,101270.0,101260.0,1.13856867]
[1746732416738,0.87162509,101270.0,101260.0,0.3506017]
[1746732417239,1.03962509,101270.0,101260.0,0.15712]
[1746732417429,1.03962509,101270.0,101260.0,0.13112]
[1746732417934,0.84583743,101270.0,101260.0,0.12912]
[1746732418440,0.84583743,101270.0,101260.0,0.3246017]
[1746732418640,0.84583743,101270.0,101260.0,0.12712]
[1746732420741,0.84583743,101270.0,101260.0,0.51838936]
[1746732421042,0.28757523,101270.0,101260.0,0.51838936]